[Event "Titled Tuesday Blitz January 17 Late 2023"]
[White "Ibadov, Dashgyn"]
[Black "Sanchez, Robert"]
[WhiteFideId "24107514"]
[BlackFideId "2034360"]
[WhiteElo "2391"]
[BlackElo "1966"]
[Result "1-0"]
[Round "07"]
[TimeControl "180+2"]
[Date "2023.01.17"]
[WhiteClock "0:01:28"]
[BlackClock "0:00:10"]

1. e4 {[%clk 0:03:00]}  e6 {[%clk 0:02:57]} 2. d4 {[%clk 0:02:59]}  d5 {[%clk 0:02:57]} 3. Nc3 {[%clk 0:02:57]}  Nf6 {[%clk 0:02:57]} 4. Bg5 {[%clk 0:02:57]}  Be7 {[%clk 0:02:57]} 5. e5 {[%clk 0:02:57]}  Nfd7 {[%clk 0:02:57]} 6. h4 {[%clk 0:02:56]}  h6 {[%clk 0:02:57]} 7. Qh5 {[%clk 0:02:56]}  g6 {[%clk 0:02:44]} 8. Bxe7 {[%clk 0:02:55]}  Qxe7 {[%clk 0:02:44]} 9. Qg4 {[%clk 0:02:53]}  h5 {[%clk 0:02:37]} 10. Qf4 {[%clk 0:02:52]}  a6 {[%clk 0:02:34]} 11. Nf3 {[%clk 0:02:51]}  c5 {[%clk 0:02:33]} 12. O-O-O {[%clk 0:02:48]}  Nc6 {[%clk 0:02:30]} 13. dxc5 {[%clk 0:02:42]}  Nxc5 {[%clk 0:02:30]} 14. Bd3 {[%clk 0:02:37]}  Bd7 {[%clk 0:02:24]} 15. Ng5 {[%clk 0:02:31]}  Nxd3+ {[%clk 0:02:21]} 16. Rxd3 {[%clk 0:02:26]}  Rc8 {[%clk 0:01:32]} 17. Rxd5 {[%clk 0:01:51]}  exd5 {[%clk 0:00:42]} 18. Nxd5 {[%clk 0:01:52]}  Qxe5 {[%clk 0:00:42]} 19. Qxf7+ {[%clk 0:01:52]}  Kd8 {[%clk 0:00:42]} 20. Rd1 {[%clk 0:01:51]}  Qf5 {[%clk 0:00:28]} 21. Nf6 {[%clk 0:01:33]}  Ne5 {[%clk 0:00:19]} 22. Ne6+ {[%clk 0:01:29]}  Qxe6 {[%clk 0:00:13]} 23. Qxe6 {[%clk 0:01:29]}  Rc5 {[%clk 0:00:10]} 24. Rxd7+ {[%clk 0:01:28]} 1-0


[Site "https://www.chess.com"]

[Event "Titled Tuesday Blitz January 17 Late 2023"]
[White "Tomb, Maroun"]
[Black "Haszon, David"]
[WhiteFideId "5300398"]
[BlackFideId "733610"]
[WhiteElo "2090"]
[BlackElo "2264"]
[Result "0-1"]
[Round "07"]
[TimeControl "180+2"]
[Date "2023.01.17"]
[WhiteClock "0:00:32"]
[BlackClock "0:00:33"]

1. e4 {[%clk 0:02:57]}  e5 {[%clk 0:03:00]} 2. Nf3 {[%clk 0:02:58]}  Nc6 {[%clk 0:03:00]} 3. Bb5 {[%clk 0:02:57]}  Nf6 {[%clk 0:02:59]} 4. d4 {[%clk 0:02:56]}  exd4 {[%clk 0:02:42]} 5. O-O {[%clk 0:02:56]}  a6 {[%clk 0:02:40]} 6. Ba4 {[%clk 0:02:55]}  b5 {[%clk 0:02:38]} 7. Bb3 {[%clk 0:02:55]}  d6 {[%clk 0:02:37]} 8. Ng5 {[%clk 0:02:55]}  Ne5 {[%clk 0:02:12]} 9. f4 {[%clk 0:02:55]}  Nc4 {[%clk 0:02:00]} 10. e5 {[%clk 0:02:55]}  h6 {[%clk 0:01:55]} 11. exf6 {[%clk 0:02:42]}  hxg5 {[%clk 0:01:55]} 12. Bxc4 {[%clk 0:02:39]}  bxc4 {[%clk 0:01:52]} 13. Re1+ {[%clk 0:02:39]}  Kd7 {[%clk 0:01:47]} 14. fxg5 {[%clk 0:02:24]}  c5 {[%clk 0:01:44]} 15. Qf3 {[%clk 0:02:17]}  Rb8 {[%clk 0:01:34]} 16. Na3 {[%clk 0:02:17]}  gxf6 {[%clk 0:01:27]} 17. gxf6 {[%clk 0:02:05]}  Bb7 {[%clk 0:01:26]} 18. Qf5+ {[%clk 0:02:04]}  Kc7 {[%clk 0:01:27]} 19. Nxc4 {[%clk 0:02:03]}  Qd7 {[%clk 0:01:24]} 20. Qf2 {[%clk 0:01:25]}  Rg8 {[%clk 0:01:20]} 21. Bf4 {[%clk 0:01:03]}  Bd5 {[%clk 0:01:02]} 22. Nxd6 {[%clk 0:00:59]}  Bxd6 {[%clk 0:01:01]} 23. Re7 {[%clk 0:00:59]}  Rxg2+ {[%clk 0:00:54]} 24. Qxg2 {[%clk 0:00:58]}  Bxg2 {[%clk 0:00:54]} 25. Bxd6+ {[%clk 0:00:47]}  Kxd6 {[%clk 0:00:55]} 26. Rxd7+ {[%clk 0:00:47]}  Kxd7 {[%clk 0:00:56]} 27. Kxg2 {[%clk 0:00:44]}  Rxb2 {[%clk 0:00:56]} 28. h4 {[%clk 0:00:40]}  Rxc2+ {[%clk 0:00:49]} 29. Kg3 {[%clk 0:00:41]}  Ke6 {[%clk 0:00:49]} 30. Rf1 {[%clk 0:00:38]}  Rb2 {[%clk 0:00:35]} 31. h5 {[%clk 0:00:36]}  Rb8 {[%clk 0:00:36]} 32. Kg4 {[%clk 0:00:33]}  Rg8+ {[%clk 0:00:36]} 33. Kf4 {[%clk 0:00:32]}  Kxf6 {[%clk 0:00:36]} 34. Ke4+ {[%clk 0:00:32]}  Ke6 {[%clk 0:00:35]} 35. Kd3 {[%clk 0:00:32]}  Rg3+ {[%clk 0:00:32]} 36. Kc4 {[%clk 0:00:32]}  Rc3# {[%clk 0:00:33]} 0-1


[Site "https://www.chess.com"]

[Event "Titled Tuesday Blitz January 17 Late 2023"]
[White "Ansh M Shah"]
[Black "Ivanisevic, Ivan"]
[WhiteFideId "25033379"]
[BlackFideId "912417"]
[WhiteElo "2171"]
[BlackElo "2532"]
[Result "0-1"]
[Round "07"]
[TimeControl "180+2"]
[Date "2023.01.17"]
[WhiteClock "0:00:09"]
[BlackClock "0:00:09"]

1. d4 {[%clk 0:03:00]}  d5 {[%clk 0:02:51]} 2. c4 {[%clk 0:03:00]}  e6 {[%clk 0:02:51]} 3. g3 {[%clk 0:02:59]}  Nf6 {[%clk 0:02:49]} 4. Bg2 {[%clk 0:02:59]}  Bb4+ {[%clk 0:02:50]} 5. Nd2 {[%clk 0:02:58]}  Nc6 {[%clk 0:02:35]} 6. Nf3 {[%clk 0:02:55]}  dxc4 {[%clk 0:02:35]} 7. e3 {[%clk 0:02:46]}  e5 {[%clk 0:02:05]} 8. Nxe5 {[%clk 0:02:38]}  Nxe5 {[%clk 0:02:04]} 9. dxe5 {[%clk 0:02:39]}  Nd7 {[%clk 0:01:35]} 10. f4 {[%clk 0:02:18]}  Nb6 {[%clk 0:01:34]} 11. O-O {[%clk 0:02:14]}  Qd3 {[%clk 0:01:30]} 12. Nf3 {[%clk 0:01:55]}  O-O {[%clk 0:01:21]} 13. Qxd3 {[%clk 0:01:32]}  cxd3 {[%clk 0:01:22]} 14. Rd1 {[%clk 0:01:33]}  Rd8 {[%clk 0:01:21]} 15. Bd2 {[%clk 0:01:32]}  Bxd2 {[%clk 0:01:14]} 16. Nxd2 {[%clk 0:01:32]}  Bg4 {[%clk 0:01:08]} 17. Rdc1 {[%clk 0:01:26]}  c6 {[%clk 0:01:07]} 18. h3 {[%clk 0:01:24]}  Be2 {[%clk 0:01:02]} 19. Kf2 {[%clk 0:01:17]}  a5 {[%clk 0:00:55]} 20. a3 {[%clk 0:01:16]}  a4 {[%clk 0:00:49]} 21. e4 {[%clk 0:00:44]}  Ra5 {[%clk 0:00:47]} 22. Bf3 {[%clk 0:00:44]}  Bxf3 {[%clk 0:00:45]} 23. Kxf3 {[%clk 0:00:45]}  Rb5 {[%clk 0:00:44]} 24. Rab1 {[%clk 0:00:44]}  Nd7 {[%clk 0:00:31]} 25. Rc4 {[%clk 0:00:41]}  Nc5 {[%clk 0:00:30]} 26. Ke3 {[%clk 0:00:36]}  f6 {[%clk 0:00:24]} 27. exf6 {[%clk 0:00:33]}  gxf6 {[%clk 0:00:25]} 28. g4 {[%clk 0:00:18]}  b6 {[%clk 0:00:25]} 29. h4 {[%clk 0:00:18]}  h6 {[%clk 0:00:24]} 30. b4 {[%clk 0:00:15]}  axb3 {[%clk 0:00:22]} 31. Rb4 {[%clk 0:00:15]}  Ra8 {[%clk 0:00:15]} 32. Nxb3 {[%clk 0:00:15]}  Rxa3 {[%clk 0:00:14]} 33. Nxc5 {[%clk 0:00:15]}  bxc5 {[%clk 0:00:10]} 34. Rxb5 {[%clk 0:00:15]}  cxb5 {[%clk 0:00:11]} 35. Rxb5 {[%clk 0:00:15]}  c4 {[%clk 0:00:10]} 36. Rc5 {[%clk 0:00:15]}  Rc3 {[%clk 0:00:10]} 37. e5 {[%clk 0:00:10]}  fxe5 {[%clk 0:00:09]} 38. Rxe5 {[%clk 0:00:10]}  Rc2 {[%clk 0:00:09]} 39. Rc5 {[%clk 0:00:10]}  Re2+ {[%clk 0:00:08]} 40. Kf3 {[%clk 0:00:09]}  Rc2 {[%clk 0:00:09]} 41. Ke3 {[%clk 0:00:09]}  d2 {[%clk 0:00:09]} 42. Ke2 {[%clk 0:00:09]}  c3 {[%clk 0:00:09]} 43. Rd5 {[%clk 0:00:05]}  Rc1 {[%clk 0:00:09]} 44. g5 {[%clk 0:00:04]}  hxg5 {[%clk 0:00:08]} 45. hxg5 {[%clk 0:00:05]}  Re1+ {[%clk 0:00:08]} 46. Kf2 {[%clk 0:00:05]}  d1=Q {[%clk 0:00:08]} 47. Rxd1 {[%clk 0:00:06]}  Rxd1 {[%clk 0:00:09]} 48. Ke3 {[%clk 0:00:07]}  c2 {[%clk 0:00:09]} 49. Ke4 {[%clk 0:00:08]}  c1=Q {[%clk 0:00:09]} 50. Kf5 {[%clk 0:00:09]}  Qe3 {[%clk 0:00:09]} 51. Kg6 {[%clk 0:00:09]}  Rd6+ {[%clk 0:00:09]} 52. Kh5 {[%clk 0:00:10]}  Qd3 {[%clk 0:00:09]} 53. f5 {[%clk 0:00:09]}  Qh3# {[%clk 0:00:09]} 0-1


[Site "https://www.chess.com"]

[Event "Titled Tuesday Blitz January 17 Late 2023"]
[White "Ladan, Nicholas"]
[Black "Djokic, Mihailo"]
[WhiteFideId "30918855"]
[BlackFideId "976440"]
[WhiteElo "2228"]
[BlackElo "2192"]
[Result "0-1"]
[Round "07"]
[TimeControl "180+2"]
[Date "2023.01.17"]
[WhiteClock "0:00:03"]
[BlackClock "0:01:43"]

1. d4 {[%clk 0:03:00]}  Nf6 {[%clk 0:02:59]} 2. Bf4 {[%clk 0:02:59]}  g6 {[%clk 0:02:55]} 3. Nc3 {[%clk 0:02:59]}  d5 {[%clk 0:02:55]} 4. e3 {[%clk 0:02:58]}  Bg7 {[%clk 0:02:55]} 5. h4 {[%clk 0:02:58]}  h5 {[%clk 0:02:55]} 6. Nf3 {[%clk 0:02:58]}  O-O {[%clk 0:02:56]} 7. Ne5 {[%clk 0:02:57]}  Bf5 {[%clk 0:02:56]} 8. Bd3 {[%clk 0:02:57]}  Bxd3 {[%clk 0:02:54]} 9. Qxd3 {[%clk 0:02:57]}  c5 {[%clk 0:02:55]} 10. dxc5 {[%clk 0:02:56]}  Na6 {[%clk 0:02:53]} 11. Qb5 {[%clk 0:02:50]}  Rc8 {[%clk 0:02:48]} 12. Nd3 {[%clk 0:02:43]}  Ne4 {[%clk 0:02:46]} 13. Na4 {[%clk 0:02:33]}  Re8 {[%clk 0:02:19]} 14. Rh3 {[%clk 0:01:46]}  e5 {[%clk 0:02:17]} 15. Bh2 {[%clk 0:01:46]}  d4 {[%clk 0:02:13]} 16. O-O-O {[%clk 0:01:41]}  Qd5 {[%clk 0:02:07]} 17. Kb1 {[%clk 0:01:22]}  Nexc5 {[%clk 0:02:01]} 18. Ndxc5 {[%clk 0:01:20]}  Nxc5 {[%clk 0:01:58]} 19. exd4 {[%clk 0:01:16]}  exd4 {[%clk 0:01:56]} 20. Nxc5 {[%clk 0:01:02]}  Qxg2 {[%clk 0:01:51]} 21. Rhd3 {[%clk 0:00:21]}  Qxh2 {[%clk 0:01:49]} 22. Nxb7 {[%clk 0:00:21]}  Rb8 {[%clk 0:01:45]} 23. Qa6 {[%clk 0:00:17]}  Re6 {[%clk 0:01:46]} 24. Qxa7 {[%clk 0:00:16]}  Re7 {[%clk 0:01:46]} 25. Rb3 {[%clk 0:00:16]}  Qc7 {[%clk 0:01:42]} 26. a4 {[%clk 0:00:03]}  Qc8 {[%clk 0:01:42]} 27. a5 {[%clk 0:00:02]}  Rexb7 {[%clk 0:01:42]} 28. Rxb7 {[%clk 0:00:03]}  Rxb7 {[%clk 0:01:43]} 29. Qc5 {[%clk 0:00:03]}  Qxc5 {[%clk 0:01:43]} 0-1


[Site "https://www.chess.com"]

[Event "Titled Tuesday Blitz January 17 Late 2023"]
[White "Kuznecovs, Nikita"]
[Black "Kleiman, Jake"]
[WhiteFideId "11604557"]
[BlackFideId "2020041"]
[WhiteElo "2287"]
[BlackElo "2399"]
[Result "0-1"]
[Round "07"]
[TimeControl "180+2"]
[Date "2023.01.17"]
[WhiteClock "0:00:06"]
[BlackClock "0:00:56"]

1. Nf3 {[%clk 0:02:53]}  d5 {[%clk 0:03:00]} 2. g3 {[%clk 0:02:52]}  e6 {[%clk 0:03:01]} 3. Bg2 {[%clk 0:02:52]}  Nf6 {[%clk 0:03:00]} 4. O-O {[%clk 0:02:52]}  g6 {[%clk 0:03:00]} 5. d4 {[%clk 0:02:48]}  Bg7 {[%clk 0:03:00]} 6. c4 {[%clk 0:02:49]}  O-O {[%clk 0:03:00]} 7. Nc3 {[%clk 0:02:49]}  Ne4 {[%clk 0:03:00]} 8. Ne5 {[%clk 0:02:48]}  Nxc3 {[%clk 0:02:59]} 9. bxc3 {[%clk 0:02:48]}  c5 {[%clk 0:02:58]} 10. cxd5 {[%clk 0:02:46]}  exd5 {[%clk 0:02:57]} 11. e3 {[%clk 0:02:41]}  Nc6 {[%clk 0:02:51]} 12. Nd3 {[%clk 0:02:41]}  b6 {[%clk 0:02:40]} 13. Nf4 {[%clk 0:02:38]}  Ne7 {[%clk 0:02:33]} 14. Ba3 {[%clk 0:02:38]}  Ba6 {[%clk 0:02:26]} 15. Re1 {[%clk 0:02:38]}  Rc8 {[%clk 0:02:25]} 16. Qa4 {[%clk 0:02:33]}  Bc4 {[%clk 0:02:15]} 17. Rad1 {[%clk 0:02:21]}  Qc7 {[%clk 0:02:04]} 18. h4 {[%clk 0:02:01]}  Rfd8 {[%clk 0:02:02]} 19. Bc1 {[%clk 0:01:34]}  b5 {[%clk 0:01:58]} 20. Qa3 {[%clk 0:01:32]}  b4 {[%clk 0:01:48]} 21. cxb4 {[%clk 0:01:31]}  cxd4 {[%clk 0:01:49]} 22. exd4 {[%clk 0:01:31]}  Nf5 {[%clk 0:01:49]} 23. Bb2 {[%clk 0:01:20]}  Nxh4 {[%clk 0:01:47]} 24. Bh3 {[%clk 0:00:50]}  Rb8 {[%clk 0:01:43]} 25. b5 {[%clk 0:00:41]}  Re8 {[%clk 0:01:32]} 26. Rxe8+ {[%clk 0:00:13]}  Rxe8 {[%clk 0:01:32]} 27. Rc1 {[%clk 0:00:14]}  Qb8 {[%clk 0:01:16]} 28. Qc3 {[%clk 0:00:13]}  Bh6 {[%clk 0:01:12]} 29. Rd1 {[%clk 0:00:06]}  Bxf4 {[%clk 0:01:11]} 30. gxf4 {[%clk 0:00:07]}  Qxf4 {[%clk 0:01:11]} 31. Qg3 {[%clk 0:00:08]}  Qf3 {[%clk 0:00:57]} 32. Bc1 {[%clk 0:00:06]}  Qxd1+ {[%clk 0:00:56]} 0-1


[Site "https://www.chess.com"]

[Event "Titled Tuesday Blitz January 17 Late 2023"]
[White "Chor, Kevin"]
[Black "Kaplan, Avi Harrison"]
[WhiteFideId "2090740"]
[BlackFideId "30934559"]
[WhiteElo "1944"]
[BlackElo "2146"]
[Result "1-0"]
[Round "07"]
[TimeControl "180+2"]
[Date "2023.01.17"]
[WhiteClock "0:00:15"]
[BlackClock "0:00:04"]

1. e4 {[%clk 0:03:00]}  c5 {[%clk 0:02:59]} 2. Nf3 {[%clk 0:03:01]}  d6 {[%clk 0:02:59]} 3. d4 {[%clk 0:02:59]}  cxd4 {[%clk 0:03:00]} 4. Nxd4 {[%clk 0:03:00]}  Nf6 {[%clk 0:03:01]} 5. Nc3 {[%clk 0:03:00]}  a6 {[%clk 0:03:02]} 6. Be2 {[%clk 0:03:00]}  e5 {[%clk 0:03:02]} 7. Nb3 {[%clk 0:03:00]}  Be7 {[%clk 0:03:02]} 8. O-O {[%clk 0:03:00]}  O-O {[%clk 0:03:03]} 9. Be3 {[%clk 0:02:59]}  b5 {[%clk 0:03:03]} 10. Nd5 {[%clk 0:02:53]}  Nbd7 {[%clk 0:02:41]} 11. Qd3 {[%clk 0:02:51]}  Nxd5 {[%clk 0:02:41]} 12. exd5 {[%clk 0:02:46]}  f5 {[%clk 0:02:38]} 13. f3 {[%clk 0:02:45]}  Nf6 {[%clk 0:02:31]} 14. Qd2 {[%clk 0:02:31]}  Bb7 {[%clk 0:02:28]} 15. c4 {[%clk 0:02:31]}  bxc4 {[%clk 0:02:24]} 16. Bxc4 {[%clk 0:02:32]}  Rc8 {[%clk 0:02:24]} 17. Na5 {[%clk 0:02:32]}  Rxc4 {[%clk 0:01:44]} 18. Nxc4 {[%clk 0:02:33]}  Nxd5 {[%clk 0:01:44]} 19. Rad1 {[%clk 0:02:31]}  Qc7 {[%clk 0:01:34]} 20. Rc1 {[%clk 0:02:23]}  Qd7 {[%clk 0:01:15]} 21. Rfd1 {[%clk 0:02:15]}  Qb5 {[%clk 0:01:09]} 22. Bf2 {[%clk 0:02:07]}  h6 {[%clk 0:00:57]} 23. Ne3 {[%clk 0:01:52]}  Bg5 {[%clk 0:00:54]} 24. Qd3 {[%clk 0:01:40]}  Qxd3 {[%clk 0:00:34]} 25. Rxd3 {[%clk 0:01:41]}  e4 {[%clk 0:00:35]} 26. Rb3 {[%clk 0:01:34]}  Nxe3 {[%clk 0:00:30]} 27. Rxb7 {[%clk 0:01:23]}  Nd5 {[%clk 0:00:07]} 28. Rd1 {[%clk 0:01:22]}  Nf6 {[%clk 0:00:07]} 29. h4 {[%clk 0:01:04]}  Bf4 {[%clk 0:00:06]} 30. g3 {[%clk 0:01:04]}  e3 {[%clk 0:00:01]} 31. Be1 {[%clk 0:00:54]}  e2 {[%clk 0:00:02]} 32. Rd3 {[%clk 0:00:45]}  Bc1 {[%clk 0:00:02]} 33. Re7 {[%clk 0:00:40]}  Bxb2 {[%clk 0:00:01]} 34. Rxe2 {[%clk 0:00:40]}  Ba3 {[%clk 0:00:01]} 35. Rxa3 {[%clk 0:00:40]}  Kh7 {[%clk 0:00:02]} 36. Rxa6 {[%clk 0:00:40]}  Rd8 {[%clk 0:00:02]} 37. Bc3 {[%clk 0:00:39]}  Nd5 {[%clk 0:00:03]} 38. Bd4 {[%clk 0:00:37]}  Nb4 {[%clk 0:00:03]} 39. Ra7 {[%clk 0:00:37]}  Kg6 {[%clk 0:00:02]} 40. Rxg7+ {[%clk 0:00:34]}  Kh5 {[%clk 0:00:03]} 41. g4+ {[%clk 0:00:35]}  fxg4 {[%clk 0:00:03]} 42. fxg4+ {[%clk 0:00:36]}  Kxh4 {[%clk 0:00:04]} 43. Rh2+ {[%clk 0:00:37]}  Kg3 {[%clk 0:00:04]} 44. Bf2+ {[%clk 0:00:33]}  Kf3 {[%clk 0:00:04]} 45. Rf7+ {[%clk 0:00:33]}  Ke4 {[%clk 0:00:05]} 46. Rxh6 {[%clk 0:00:31]}  Rg8 {[%clk 0:00:05]} 47. Rh4 {[%clk 0:00:23]}  Nd3 {[%clk 0:00:06]} 48. g5+ {[%clk 0:00:20]}  Ke5 {[%clk 0:00:06]} 49. Be3 {[%clk 0:00:19]}  Ke6 {[%clk 0:00:06]} 50. Rf6+ {[%clk 0:00:19]}  Ke7 {[%clk 0:00:06]} 51. Rd4 {[%clk 0:00:19]}  Ne5 {[%clk 0:00:06]} 52. Rdxd6 {[%clk 0:00:18]}  Ng4 {[%clk 0:00:06]} 53. Rfe6+ {[%clk 0:00:17]}  Kf7 {[%clk 0:00:07]} 54. g6+ {[%clk 0:00:18]}  Kg7 {[%clk 0:00:06]} 55. Rd7+ {[%clk 0:00:15]}  Kf8 {[%clk 0:00:04]} 56. Rf7# {[%clk 0:00:15]} 1-0


[Site "https://www.chess.com"]

[Event "Titled Tuesday Blitz January 17 Late 2023"]
[White "Donskov, Anatoly"]
[Black "Olafsson, Helgi"]
[WhiteFideId "24143413"]
[BlackFideId "2300010"]
[WhiteElo "2279"]
[BlackElo "2491"]
[Result "0-1"]
[Round "07"]
[TimeControl "180+2"]
[Date "2023.01.17"]
[WhiteClock "0:00:06"]
[BlackClock "0:01:33"]

1. e4 {[%clk 0:03:00]}  c5 {[%clk 0:03:00]} 2. Nf3 {[%clk 0:03:00]}  e6 {[%clk 0:03:00]} 3. d4 {[%clk 0:02:59]}  cxd4 {[%clk 0:03:00]} 4. Nxd4 {[%clk 0:02:59]}  a6 {[%clk 0:03:00]} 5. c4 {[%clk 0:02:54]}  Nf6 {[%clk 0:03:00]} 6. Nc3 {[%clk 0:02:51]}  Bb4 {[%clk 0:02:59]} 7. Nc2 {[%clk 0:02:51]}  Bxc3+ {[%clk 0:02:58]} 8. bxc3 {[%clk 0:02:52]}  Qa5 {[%clk 0:02:58]} 9. Qd3 {[%clk 0:02:51]}  Nc6 {[%clk 0:02:55]} 10. f4 {[%clk 0:02:36]}  d5 {[%clk 0:02:51]} 11. cxd5 {[%clk 0:02:22]}  exd5 {[%clk 0:02:51]} 12. exd5 {[%clk 0:02:22]}  Nxd5 {[%clk 0:02:49]} 13. Bd2 {[%clk 0:02:21]}  O-O {[%clk 0:02:49]} 14. Be2 {[%clk 0:01:41]}  Re8 {[%clk 0:02:49]} 15. O-O {[%clk 0:01:35]}  Bf5 {[%clk 0:02:44]} 16. Qxf5 {[%clk 0:01:25]}  Rxe2 {[%clk 0:02:44]} 17. Qd3 {[%clk 0:01:26]}  Rae8 {[%clk 0:02:38]} 18. Rae1 {[%clk 0:01:17]}  Rxe1 {[%clk 0:02:22]} 19. Rxe1 {[%clk 0:01:18]}  Rxe1+ {[%clk 0:02:20]} 20. Bxe1 {[%clk 0:01:19]}  Qxa2 {[%clk 0:02:16]} 21. c4 {[%clk 0:01:03]}  Nxf4 {[%clk 0:02:09]} 22. Qe4 {[%clk 0:00:35]}  Ne6 {[%clk 0:02:05]} 23. Bc3 {[%clk 0:00:17]}  Qb1+ {[%clk 0:02:00]} 24. Kf2 {[%clk 0:00:17]}  h6 {[%clk 0:02:00]} 25. h3 {[%clk 0:00:16]}  Nc5 {[%clk 0:01:51]} 26. Qe2 {[%clk 0:00:15]}  Ne6 {[%clk 0:01:46]} 27. g4 {[%clk 0:00:14]}  Qb3 {[%clk 0:01:41]} 28. Qd2 {[%clk 0:00:12]}  Ng5 {[%clk 0:01:38]} 29. Ke3 {[%clk 0:00:06]}  Qb6+ {[%clk 0:01:35]} 30. Kf4 {[%clk 0:00:06]}  Nxh3+ {[%clk 0:01:33]} 31. Kg3 {[%clk 0:00:06]}  Ng5 {[%clk 0:01:33]} 32. Ne3 {[%clk 0:00:06]}  Ne4+ {[%clk 0:01:33]} 0-1


[Site "https://www.chess.com"]

[Event "Titled Tuesday Blitz January 17 Late 2023"]
[White "Lopez Gracia, Fernando"]
[Black "Rodrigues, Tiago Pereira"]
[WhiteFideId "2207184"]
[BlackFideId "2101203"]
[WhiteElo "2255"]
[BlackElo "2155"]
[Result "1-0"]
[Round "07"]
[TimeControl "180+2"]
[Date "2023.01.17"]
[WhiteClock "0:00:13"]
[BlackClock "0:00:20"]

1. c4 {[%clk 0:03:00]}  c6 {[%clk 0:02:52]} 2. d4 {[%clk 0:03:00]}  d6 {[%clk 0:02:53]} 3. Nc3 {[%clk 0:03:00]}  Nd7 {[%clk 0:02:53]} 4. e4 {[%clk 0:02:58]}  e5 {[%clk 0:02:54]} 5. Nf3 {[%clk 0:02:57]}  Be7 {[%clk 0:02:54]} 6. Be2 {[%clk 0:02:58]}  Ngf6 {[%clk 0:02:54]} 7. O-O {[%clk 0:02:58]}  a6 {[%clk 0:02:55]} 8. Qc2 {[%clk 0:02:57]}  b5 {[%clk 0:02:54]} 9. d5 {[%clk 0:02:50]}  cxd5 {[%clk 0:02:54]} 10. cxd5 {[%clk 0:02:36]}  b4 {[%clk 0:02:46]} 11. Nb1 {[%clk 0:02:33]}  Nc5 {[%clk 0:02:43]} 12. Be3 {[%clk 0:02:31]}  Nfxe4 {[%clk 0:02:35]} 13. Nbd2 {[%clk 0:02:30]}  Bf5 {[%clk 0:02:29]} 14. Bxc5 {[%clk 0:02:12]}  Nxd2 {[%clk 0:02:25]} 15. Qxd2 {[%clk 0:02:05]}  dxc5 {[%clk 0:02:25]} 16. Nxe5 {[%clk 0:02:05]}  O-O {[%clk 0:02:19]} 17. Nc4 {[%clk 0:02:05]}  Bd6 {[%clk 0:02:16]} 18. Bd3 {[%clk 0:02:04]}  Bc8 {[%clk 0:02:10]} 19. b3 {[%clk 0:02:02]}  a5 {[%clk 0:02:11]} 20. Rfe1 {[%clk 0:01:54]}  a4 {[%clk 0:02:07]} 21. Qc2 {[%clk 0:01:53]}  g6 {[%clk 0:02:06]} 22. bxa4 {[%clk 0:01:50]}  Qc7 {[%clk 0:02:03]} 23. a5 {[%clk 0:01:49]}  Ra7 {[%clk 0:01:59]} 24. g3 {[%clk 0:01:45]}  Bd7 {[%clk 0:01:58]} 25. a3 {[%clk 0:01:37]}  Rb8 {[%clk 0:01:56]} 26. Reb1 {[%clk 0:01:27]}  Bb5 {[%clk 0:01:50]} 27. axb4 {[%clk 0:01:19]}  cxb4 {[%clk 0:01:43]} 28. Nb6 {[%clk 0:01:02]}  Qxc2 {[%clk 0:01:35]} 29. Bxc2 {[%clk 0:01:02]}  Kg7 {[%clk 0:01:22]} 30. Bb3 {[%clk 0:00:55]}  Bc5 {[%clk 0:01:17]} 31. Nc4 {[%clk 0:00:44]}  Rba8 {[%clk 0:01:09]} 32. Rd1 {[%clk 0:00:27]}  Bxc4 {[%clk 0:01:08]} 33. Bxc4 {[%clk 0:00:28]}  Rxa5 {[%clk 0:01:08]} 34. Rxa5 {[%clk 0:00:27]}  Rxa5 {[%clk 0:01:09]} 35. d6 {[%clk 0:00:27]}  Ra8 {[%clk 0:01:01]} 36. Rd5 {[%clk 0:00:20]}  Bb6 {[%clk 0:00:22]} 37. Rb5 {[%clk 0:00:20]}  Bd8 {[%clk 0:00:20]} 38. Rxb4 {[%clk 0:00:17]}  Kf6 {[%clk 0:00:21]} 39. Rb7 {[%clk 0:00:17]}  Ke5 {[%clk 0:00:20]} 40. Rxf7 {[%clk 0:00:17]}  Kxd6 {[%clk 0:00:19]} 41. Rxh7 {[%clk 0:00:17]}  g5 {[%clk 0:00:20]} 42. Bd3 {[%clk 0:00:17]}  Rb8 {[%clk 0:00:19]} 43. h3 {[%clk 0:00:17]}  Ke5 {[%clk 0:00:19]} 44. Kg2 {[%clk 0:00:16]}  Rb3 {[%clk 0:00:18]} 45. Be2 {[%clk 0:00:16]}  Rb2 {[%clk 0:00:18]} 46. Bf3 {[%clk 0:00:16]}  Bb6 {[%clk 0:00:18]} 47. Re7+ {[%clk 0:00:16]}  Kf6 {[%clk 0:00:17]} 48. Re2 {[%clk 0:00:17]}  Rxe2 {[%clk 0:00:17]} 49. Bxe2 {[%clk 0:00:17]}  Bc5 {[%clk 0:00:17]} 50. Kf3 {[%clk 0:00:17]}  Bb6 {[%clk 0:00:17]} 51. Bd3 {[%clk 0:00:18]}  Ba7 {[%clk 0:00:17]} 52. Kg2 {[%clk 0:00:17]}  Bb6 {[%clk 0:00:18]} 53. Be4 {[%clk 0:00:18]}  Ba7 {[%clk 0:00:18]} 54. f4 {[%clk 0:00:13]}  g4 {[%clk 0:00:18]} 55. hxg4 {[%clk 0:00:13]}  Bb8 {[%clk 0:00:18]} 56. Kf3 {[%clk 0:00:12]}  Bc7 {[%clk 0:00:18]} 57. g5+ {[%clk 0:00:13]}  Kg7 {[%clk 0:00:18]} 58. Kg4 {[%clk 0:00:13]}  Bd8 {[%clk 0:00:18]} 59. f5 {[%clk 0:00:13]}  Be7 {[%clk 0:00:18]} 60. f6+ {[%clk 0:00:12]}  Bxf6 {[%clk 0:00:19]} 61. gxf6+ {[%clk 0:00:13]}  Kxf6 {[%clk 0:00:20]} 62. Kh5 {[%clk 0:00:13]} 1-0


[Site "https://www.chess.com"]